bitfinex/quotes_SOLUSD_20260109
["timestamp","ask_amount","ask_price","bid_price","bid_amount"]
[1767935715201,0.66033086,140.04,140.02,3.42781958]
[1767935715501,0.66033086,140.04,140.01,3.42781958]
[1767935715894,0.66033086,140.04,140.0,4.15200733]
[1767935716282,0.66033086,140.04,140.0,0.72418775]
[1767935716484,4.08815044,140.04,140.0,0.72418775]
[1767935717786,3.42781958,140.03,140.0,0.72418775]
[1767935719311,4.08815044,140.04,140.0,0.72418775]
[1767935719604,0.66033086,140.04,140.0,0.72418775]
[1767935723719,7.14053583,140.05,140.01,4.15200733]
[1767935723720,0.66033086,140.05,140.01,4.15200733]
[1767935724029,0.66033086,140.05,140.02,3.42781958]
[1767935727716,7.13983995,140.06,140.03,0.72418775]
[1767935727909,0.76033086,140.08,140.04,4.15200733]
[1767935728110,0.76033086,140.08,140.05,3.42781958]
[1767935728711,0.66033086,140.07,140.04,3.42781958]
[1767935729212,0.66033086,140.07,140.02,7.14176392]
[1767935729413,0.66033086,140.07,140.04,3.42781958]
[1767935729992,0.66033086,140.06,140.02,4.15200733]
[1767935730807,0.66033086,140.06,140.03,3.42781958]
[1767935733629,0.66033086,140.06,140.02,3.42781958]
[1767935733828,0.66127261,140.05,140.02,3.42781958]
[1767935734839,0.66127261,140.05,140.01,11.25908747]
[1767935735837,0.66127261,140.05,140.02,3.42781958]
[1767935736070,7.80073673,140.07,140.03,3.42781958]
[1767935736324,0.66127261,140.06,140.03,3.42781958]
[1767935736524,0.66127261,140.06,140.03,4.11682339]
[1767935736713,0.76127261,140.08,140.03,0.68900381]
[1767935736912,0.76127261,140.08,140.05,3.42781958]
[1767935737114,0.76127261,140.08,140.04,0.68900381]
[1767935737314,0.76127261,140.08,140.06,1.36e-06]
[1767935737628,0.1,140.1,140.07,1.55739311]
[1767935737830,0.1,140.1,140.08,3.42781958]
[1767935738326,0.76127261,140.1,140.07,3.42781958]
[1767935738627,7.89910094,140.1,140.07,3.42781958]
[1767935740931,7.89910094,140.1,140.06,3.42781958]
[1767935743051,7.89910094,140.1,140.07,3.42781958]
[1767935744350,0.66127261,140.09,140.05,0.60890913]
[1767935744535,0.66127261,140.09,140.06,3.42781958]
[1767935746249,0.66127261,140.09,140.07,3.42781958]
[1767935748338,0.66127261,140.09,140.04,0.14216157]
[1767935748521,0.66127261,140.04,139.88,51.07881544]
[1767935748860,0.66127261,139.95,139.91,3.42781958]
[1767935749070,0.66127261,139.94,139.89,7.14835706]
[1767935749358,0.66127261,139.94,139.9,3.42781958]
[1767935749737,0.66127261,139.94,139.91,3.42781958]
[1767935750142,0.66127261,139.94,139.9,3.42781958]
[1767935750748,0.66127261,139.94,139.89,7.29051863]
[1767935750749,0.66127261,139.94,139.89,10.71833821]
[1767935750930,0.66127261,139.94,139.9,0.28432314]
[1767935751431,0.66127261,139.94,139.9,0.14216157]
[1767935752647,0.66127261,139.94,139.9,0.28432314]
[1767935753149,0.66127261,139.94,139.9,0.42648471]
[1767935759046,6.27059493,139.94,139.9,0.42648471]
[1767935761449,0.66127261,139.99,139.92,0.14216157]
[1767935761654,6.27059493,139.97,139.92,0.14216157]
[1767935762050,5.60932232,139.96,139.92,0.14216157]
[1767935762434,6.31260056,139.98,139.94,0.14216157]
[1767935762635,0.70327824,140.01,139.97,0.42648471]
[1767935763033,0.70327824,140.01,139.97,6.03580703]
[1767935764568,0.70327824,140.01,139.97,13.18015988]
[1767935764862,0.70327824,140.01,139.97,12.89583674]
[1767935765359,0.70327824,140.01,139.98,5.60932232]
[1767935766863,0.70327824,140.03,139.99,5.60932232]
[1767935767059,0.70327824,140.02,139.99,5.60932232]
[1767935767266,0.70327824,140.02,139.98,12.89533276]
[1767935768642,0.70327824,140.02,139.98,12.75317119]
[1767935770248,0.70327824,140.02,139.98,5.60932232]
[1767935774464,0.70327824,140.02,139.97,7.57070254]
[1767935774768,0.70327824,140.02,139.98,2.19608517]
[1767935775670,0.70327824,140.02,139.97,7.57070254]
[1767935775862,0.70327824,140.02,139.98,2.19608517]
[1767935776361,0.70327824,140.02,139.98,2.33824674]
[1767935776561,0.70839061,140.01,139.98,2.19608517]
[1767935776865,0.70839061,140.01,139.97,9.340303]
[1767935777462,0.70839061,140.0,139.96,84.6229821]
[1767935777671,0.70839061,140.0,139.96,84.48082053]
[1767935777857,0.70839061,140.0,139.97,2.19608517]
[1767935778049,0.70839061,140.0,139.96,62.1]
[1767935778576,0.70839061,140.0,139.95,15.23608517]
[1767935778752,7.85132916,140.0,139.95,15.37824674]
[1767935778951,0.70839061,139.99,139.95,15.37824674]
[1767935781369,0.70839061,139.99,139.95,15.23608517]
[1767935782265,0.70839061,139.99,139.95,22.38148672]
[1767935783274,0.70839061,139.99,139.95,20.18540155]
[1767935784377,0.70839061,139.99,139.95,20.32756312]
[1767935784885,0.70839061,139.99,139.91,6.6801107]
[1767935784886,0.70839061,139.97,139.92,2.33824674]
[1767935785052,0.70839061,139.97,139.92,9.34257966]
[1767935785253,0.70839061,139.96,139.92,9.34257966]
[1767935785452,2.19608517,139.96,139.91,20.18734405]
[1767935785661,2.19608517,139.96,139.91,20.65141229]
[1767935786050,2.19608517,139.95,139.91,13.04]
[1767935786464,2.19608517,139.95,139.9,9.34390448]
[1767935786702,2.19608517,139.93,139.89,7.89672409]
[1767935786996,2.19608517,139.94,139.89,7.89672409]
[1767935787492,2.90447578,139.94,139.89,7.89672409]
[1767935789252,2.90447578,139.93,139.89,0.46406824]
[1767935789458,0.70839061,139.92,139.89,7.14844109]
[1767935789760,0.70839061,139.91,139.88,7.81303415]
[1767935791080,0.70839061,139.91,139.88,0.66406824]
[1767935792076,0.70839061,139.91,139.88,7.81300191]
[1767935795281,0.70839061,139.91,139.88,7.34893367]
[1767935795689,0.70839061,139.91,139.83,18.758136]
[1767935795864,2.85618966,139.85,139.83,0.2]
[1767935796183,0.6301045,139.85,139.83,0.2]
[1767935796380,0.60010451,139.85,139.83,0.2]
[1767935796565,0.57010452,139.85,139.83,0.2]
[1767935797887,2.19608517,139.84,139.82,0.2]
[1767935798067,2.16608518,139.84,139.82,0.2]
[1767935798567,2.82618967,139.84,139.82,0.2]
[1767935798762,0.66010449,139.84,139.82,0.2]
[1767935799162,10.0068698,139.85,139.82,0.2]
[1767935799989,2.19608517,139.84,139.82,0.2]
[1767935800684,7.15068014,139.85,139.82,0.2]
[1767935800986,10.0068698,139.85,139.82,0.2]
[1767935801588,7.81000259,139.87,139.83,0.68021628]
[1767935801774,10.00608776,139.87,139.83,0.68021628]
[1767935802367,7.81000259,139.87,139.83,2.87630145]
[1767935803290,0.66010449,139.87,139.83,2.87630145]
[1767935806989,0.66010449,139.87,139.83,0.68021628]
[1767935807287,2.85618966,139.87,139.83,0.68021628]
[1767935808292,0.66010449,139.87,139.83,2.87630145]
[1767935809182,2.85618966,139.87,139.83,0.68021628]
[1767935809491,7.14902917,139.88,139.84,0.68021628]
[1767935809492,0.66010449,139.88,139.84,0.68021628]
[1767935809697,2.85618966,139.88,139.84,0.68021628]
[1767935809990,10.00415249,139.9,139.86,0.68021628]
[1767935811107,0.66010449,139.89,139.86,0.68021628]
[1767935811982,0.66010449,139.89,139.86,2.87630145]
[1767935813286,0.66010449,139.89,139.86,0.68021628]
[1767935816396,0.66010449,139.99,139.92,17.54994967]
[1767935816591,0.66010449,139.98,139.93,2.19608517]
[1767935816898,0.66010449,139.97,139.93,2.19608517]
[1767935820597,0.66010449,139.97,139.93,3.43390467]
[1767935820992,0.66010449,139.97,139.92,20.20661212]
[1767935821193,0.66010449,139.97,139.93,10.58030298]
[1767935821403,0.66010449,139.97,139.94,3.43390467]
[1767935821883,0.66010449,139.99,139.95,3.43390467]
[1767935822198,0.66010449,139.97,139.94,3.43390467]
[1767935822380,0.66010449,139.97,139.92,20.20688342]
[1767935822582,0.6648693,139.96,139.93,3.43390467]
[1767935823689,0.6648693,139.96,139.92,23.64078809]
[1767935823887,4.09877397,139.94,139.89,23.62200987]
[1767935824092,0.6648693,139.93,139.89,23.62200987]
[1767935824294,0.6648693,139.93,139.9,3.43390467]
[1767935826894,0.6648693,139.98,139.9,25.30198917]
[1767935827097,0.6648693,140.0,139.97,3.43390467]
[1767935827282,0.6648693,140.0,139.98,3.43390467]
[1767935827478,0.6648693,140.0,139.93,3.71822781]
[1767935827714,0.71693955,139.99,139.95,3.43390467]
[1767935828007,0.71693955,139.99,139.94,7.1457245]
[1767935828207,0.71693955,139.99,139.95,3.43390467]
[1767935828705,0.71693955,139.99,139.94,7.1457245]
[1767935829000,0.71693955,139.98,139.94,10.57962917]
[1767935830516,3.43390467,139.99,139.94,10.57962917]
[1767935830517,4.15084422,139.99,139.94,10.57962917]
[1767935830686,4.15084422,139.99,139.94,23.61962917]
[1767935832913,4.15084422,139.96,139.92,7.14693274]
[1767935833093,0.71693955,139.95,139.92,7.14693274]
[1767935833489,3.43390467,139.96,139.92,7.14693274]
[1767935833689,0.71693955,139.96,139.92,10.58083741]
[1767935834699,4.15084422,139.96,139.91,23.62123408]
[1767935834894,0.71693955,139.96,139.91,23.62123408]
[1767935835207,4.15084422,139.96,139.91,23.62123408]
[1767935835409,0.71693955,139.96,139.91,23.62123408]
[1767935835604,0.71693955,139.96,139.92,7.14676398]
[1767935835902,0.71693955,139.96,139.92,10.58066865]
[1767935836693,0.71693955,139.99,139.94,3.43390467]
[1767935837007,0.71693955,139.99,139.94,16.47390467]
[1767935837506,4.15084422,139.98,139.94,13.04]
[1767935837709,0.71693955,139.97,139.94,13.04]
[1767935838408,0.71693955,140.0,139.96,7.14489854]
[1767935838589,0.71693955,140.0,139.96,7.08489854]
[1767935840317,0.71693955,140.0,139.96,10.51880321]
[1767935841608,0.71693955,140.0,139.95,7.42973221]
[1767935841810,0.71693955,140.0,139.95,10.72147531]
[1767935843220,0.71693955,139.99,139.95,10.57931374]
[1767935843424,0.71693955,139.99,139.95,7.14540907]
[1767935847999,0.71693955,139.99,139.95,10.57931374]
[1767935848642,7.2425283,140.01,139.95,10.57931374]
[1767935848802,0.81693955,140.01,139.96,3.43390467]
[1767935848999,0.1,140.01,139.99,3.43390467]
[1767935851924,0.1,140.01,139.99,10.57718922]
[1767935853525,0.69640055,140.05,140.0,3.43390467]
[1767935853718,0.69640055,140.05,140.01,3.43390467]
[1767935855206,0.69640055,140.05,140.01,7.14234697]
[1767935856410,0.69640055,140.04,140.0,23.61675446]
[1767935857730,0.69640055,140.03,140.0,13.04]
[1767935857924,0.69640055,140.03,139.99,7.14328658]
[1767935858143,0.69640055,140.01,139.97,7.14405939]
[1767935858436,0.69640055,140.01,139.96,23.61863443]
[1767935860212,0.69640055,140.01,139.97,3.43390467]
[1767935863018,0.69640055,140.01,139.97,10.57824719]
[1767935864837,0.69640055,140.01,139.98,3.43390467]
[1767935865232,0.69640055,140.01,139.97,7.14434252]
[1767935865233,0.69640055,140.01,139.97,10.57824719]
[1767935868619,0.69640055,140.01,139.97,7.14434252]
[1767935869222,0.69640055,140.01,139.96,20.18489579]
[1767935869223,0.69640055,140.0,139.96,20.18489579]
[1767935869434,0.69640055,139.99,139.95,7.14530213]
[1767935871231,0.69640055,139.98,139.95,7.14530213]
[1767935871418,3.43390467,139.99,139.95,7.14530213]
[1767935872345,10.57751435,139.99,139.94,20.18579732]
[1767935872918,10.57751435,139.99,139.94,20.88219787]
[1767935873543,0.69640055,139.98,139.94,20.88219787]
[1767935876844,0.69640055,139.98,139.94,24.31610254]
[1767935877044,0.69640055,139.99,139.95,11.2754278]
[1767935879919,0.69640055,139.99,139.95,7.84152313]
[1767935881929,0.69640055,139.98,139.95,7.84152313]
[1767935882744,0.69640055,139.98,139.95,7.14512258]
[1767935884729,0.66611227,139.99,139.95,10.03886209]
[1767935884928,0.66611227,139.99,139.96,0.69640055]
[1767935885251,0.66611227,139.98,139.95,0.69640055]
[1767935885852,0.66611227,139.98,139.94,20.18581939]
[1767935886163,0.66611227,139.98,139.94,20.88221994]
[1767935886861,0.66611227,139.98,139.94,23.0795589]
[1767935889361,0.05625801,139.94,139.84,0.70069868]
[1767935889571,2.19733896,139.88,139.83,7.1511544]
[1767935889859,7.00018615,139.92,139.86,0.70069868]
[1767935890054,7.00018615,139.92,139.84,38.06857171]
[1767935890055,2.19733896,139.92,139.87,2.89803764]
[1767935890257,4.80309284,139.94,139.88,0.70069868]
[1767935890463,2.19733896,139.95,139.89,2.19733896]
[1767935890968,2.19733896,139.94,139.89,0.70069868]
[1767935891266,0.66611227,139.93,139.89,0.70069868]
[1767935893163,2.86345123,139.93,139.89,0.70069868]
[1767935895944,2.83345124,139.93,139.89,0.70069868]
[1767935898159,0.63611228,139.93,139.89,0.70069868]
[1767935898369,2.83345124,139.93,139.89,0.70069868]
[1767935898574,2.19733896,139.92,139.89,0.70069868]
[1767935900360,2.19733896,139.92,139.89,7.8487637]
[1767935900558,2.87680763,139.92,139.89,0.70069868]
[1767935902751,2.87680763,139.92,139.88,7.14864531]
[1767935902964,2.87680763,139.91,139.88,7.84168555]
[1767935903265,2.84680764,139.91,139.88,7.84168555]
[1767935904568,2.84680764,139.91,139.88,0.69304024]
[1767935905152,7.14645221,139.93,139.89,0.69304024]
[1767935905153,2.19733896,139.92,139.89,0.69304024]
[1767935907475,2.87680763,139.92,139.89,0.69304024]
[1767935917784,2.19733896,139.91,139.89,0.69304024]
[1767935918981,2.87680763,139.92,139.89,0.69304024]
[1767935924185,2.85015937,139.9,139.86,75.82417544]
[1767935924380,2.19733896,139.89,139.86,13.72417544]
[1767935924586,2.16733897,139.89,139.86,13.72417544]
[1767935925893,2.82015938,139.89,139.86,13.72417544]
[1767935926693,2.19733896,139.88,139.86,13.72417544]
[1767935927377,2.85015937,139.89,139.86,13.72417544]
[1767935929876,0.65282041,139.89,139.86,13.72417544]
[1767935930477,2.85015937,139.91,139.87,0.68417544]
[1767935932802,2.85015937,139.91,139.88,0.68417544]
[1767935933013,2.85015937,139.92,139.88,0.68417544]
[1767935933484,0.65282041,139.91,139.88,0.68417544]
[1767935936907,2.85015937,139.91,139.88,0.68417544]
[1767935938003,2.85015937,139.9,139.86,20.18996853]
[1767935938206,2.74858528,139.89,139.86,13.72417544]
[1767935938395,2.19733896,139.89,139.86,13.04]
[1767935938808,2.19733896,139.89,139.86,13.72417544]
[1767935939294,2.19733896,139.9,139.86,13.72417544]
[1767935939510,2.19733896,139.89,139.86,13.72417544]
[1767935940188,2.85015937,139.89,139.86,13.72417544]
[1767935940903,2.35014616,139.87,139.83,7.83538261]
[1767935941104,2.32014617,139.87,139.83,7.83538261]
[1767935941892,0.12280721,139.87,139.84,7.83497267]
[1767935942105,2.19733896,139.88,139.82,0.2]
[1767935942310,2.19733896,139.84,139.82,0.2]
[1767935942492,3.44081751,139.84,139.81,0.2]
[1767935942697,0.48417544,139.83,139.81,0.2]
[1767935942890,3.44081751,139.82,139.81,0.2]
[1767935943296,3.41081752,139.82,139.81,0.2]
[1767935943599,1e-08,139.82,139.81,0.2]
[1767935944710,0.48032369,139.82,139.79,1e-08]
[1767935944899,3.44081751,139.81,139.8,3.44081751]
[1767935945089,3.44081751,139.81,139.79,1e-08]
[1767935945913,0.48032368,139.82,139.79,1e-08]
[1767935946116,3.44081751,139.81,139.79,1e-08]
[1767935946912,0.38032368,139.84,139.79,0.72430961]
[1767935947218,3.82114119,139.84,139.79,0.72430961]
[1767935948403,3.44081751,139.83,139.8,0.69685464]
[1767935949193,3.82114119,139.81,139.78,0.2]
[1767935949401,3.44081751,139.81,139.79,0.69685464]
[1767935950529,0.099,139.82,139.79,0.69685464]
[1767935950530,3.53981751,139.82,139.79,0.69685464]
[1767935950725,3.44081751,139.85,139.81,0.69685464]
[1767935951040,0.68674724,139.81,139.78,0.2]
[1767935951193,3.44081751,139.8,139.78,0.2]
[1767935951397,3.41081752,139.8,139.78,0.2]
[1767935952222,3.44081751,139.81,139.78,0.2]
[1767935953122,3.89461174,139.8,139.78,0.2]
[1767935953321,3.44081751,139.79,139.77,0.2]
[1767935953742,4.12961782,139.79,139.77,0.2]
[1767935953918,0.68447025,139.77,139.75,0.2]
[1767935954118,3.44081751,139.76,139.73,0.89685464]
[1767935955110,4.12528776,139.77,139.73,0.89685464]
[1767935955310,3.44081751,139.75,139.73,0.2]
[1767935955509,0.54717833,139.74,139.73,0.1]
[1767935955821,3.44081751,139.75,139.72,0.2]
[1767935956124,3.53981751,139.75,139.72,0.2]
[1767935956323,3.44081751,139.74,139.72,0.2]
[1767935958416,3.88451405,139.74,139.72,0.2]
[1767935958618,3.44081751,139.74,139.72,0.2]
[1767935959333,3.53981751,139.74,139.72,0.2]
[1767935959906,0.44717833,139.75,139.72,0.2]
[1767935960109,3.88799584,139.75,139.72,0.2]
[1767935964036,3.53981751,139.74,139.72,0.2]
[1767935964267,3.44081751,139.72,139.7,0.2]
[1767935964530,3.44081751,139.72,139.68,0.69685464]
[1767935964531,3.44081751,139.71,139.68,0.69685464]
[1767935964834,0.099,139.71,139.67,13.26]
[1767935965007,3.44081751,139.68,139.67,0.2]
[1767935965537,3.44081751,139.68,139.64,20.91806749]
[1767935965917,3.58406708,139.68,139.64,20.22121285]
[1767935966231,0.099,139.67,139.64,13.06]
[1767935966532,3.44081751,139.68,139.64,13.75685464]
[1767935966835,3.44081751,139.67,139.64,13.75685464]
[1767935967424,3.44081751,139.67,139.64,0.69685464]
[1767935970835,3.58451405,139.68,139.64,0.69685464]
[1767935971022,3.58451405,139.68,139.62,13.06]
[1767935971023,3.44081751,139.65,139.62,13.06]
[1767935971223,3.44081751,139.63,139.61,0.69685464]
[1767935971621,3.44081751,139.63,139.6,0.69685464]
[1767935975342,6.6801107,139.69,139.6,0.69685464]
[1767935975642,0.65135677,139.69,139.65,3.44081751]
[1767935975820,2.30930217,139.71,139.67,3.44081751]
[1767935976022,3.44081751,139.7,139.66,13.06]
[1767935976537,2.30930217,139.71,139.66,13.06]
[1767935976538,5.75011968,139.71,139.66,17.19477583]
[1767935976732,3.44081751,139.67,139.64,0.69395832]
[1767935976939,3.44081751,139.68,139.64,0.69395832]
[1767935977123,3.44081751,139.69,139.65,0.69395832]
[1767935977322,3.44081751,139.69,139.65,7.85444614]
[1767935977525,3.44081751,139.69,139.64,11.29595101]
[1767935977824,0.656918,139.68,139.64,7.8551335]
[1767935979046,2.30930217,139.67,139.64,7.8551335]
[1767935979530,4.09773551,139.7,139.66,0.69395832]
[1767935979919,3.44081751,139.71,139.67,0.69395832]
[1767935980131,4.09773551,139.7,139.66,13.06]
[1767935980356,4.09773551,139.69,139.66,13.06]
[1767935980650,3.44081751,139.68,139.66,13.06]
[1767935981157,4.09773551,139.69,139.66,13.06]
[1767935982454,0.656918,139.69,139.66,13.06]
[1767935982756,4.09773551,139.69,139.66,13.06]
[1767935985047,7.15781623,139.71,139.66,13.06]
[1767935985048,4.09773551,139.71,139.67,0.69395832]
[1767935985455,0.656918,139.7,139.66,24.35492848]
[1767935985651,7.15461114,139.77,139.69,0.69395832]
[1767935985854,3.44081751,139.75,139.7,4.13477583]
[1767935986066,3.44081751,139.74,139.7,0.69395832]
[1767935986252,3.44081751,139.73,139.7,0.69395832]
[1767935986769,3.44081751,139.74,139.7,0.69395832]
[1767935987535,3.44081751,139.78,139.73,4.13477583]
[1767935987732,4.09773551,139.77,139.7,25.05344402]
[1767935987932,3.44081751,139.76,139.71,3.44081751]
[1767935988147,3.44081751,139.76,139.72,13.08]
[1767935988669,4.09773551,139.77,139.72,16.52081751]
[1767935989167,4.09773551,139.77,139.72,23.67788755]
[1767935989739,4.09773551,139.77,139.72,24.37184587]
[1767935990344,3.44081751,139.76,139.72,20.93102836]
[1767935990539,4.09773551,139.77,139.72,24.37184587]
[1767935990856,3.44081751,139.74,139.7,0.69395832]
[1767935991070,3.44081751,139.73,139.7,13.75395832]
[1767935991978,3.87847185,139.74,139.7,20.91206408]
[1767935993280,0.43765434,139.74,139.7,24.35288159]
[1767935993440,3.87847185,139.74,139.7,20.91206408]
[1767935993954,3.87847185,139.74,139.7,13.75395832]
[1767935993955,11.03466964,139.74,139.7,13.75395832]
[1767935994140,3.87847185,139.74,139.7,13.75395832]
[1767935995467,0.28432314,139.78,139.72,0.69395832]
[1767935995468,7.81207038,139.76,139.72,0.69395832]
[1767935995757,4.09552095,139.74,139.7,20.91205992]
[1767936000764,7.15573073,139.75,139.7,20.2181016]
[1767936000955,18.17053957,139.78,139.7,20.2181016]
[1767936000956,0.656918,139.78,139.72,3.44081751]
[1767936001265,3.44081751,139.74,139.71,0.69395832]
[1767936001562,3.44081751,139.72,139.7,13.06]
[1767936001944,3.88062064,139.73,139.7,13.06]
[1767936003270,0.43980313,139.73,139.7,13.06]
[1767936003466,3.88062064,139.73,139.69,0.69395832]
[1767936003968,3.85062062,139.73,139.69,0.69395832]
[1767936004572,2.61545917,139.73,139.69,0.69395832]
[1767936006751,2.20565606,139.72,139.69,0.69395832]
[1767936007252,2.61545917,139.73,139.7,0.6887714]
[1767936008867,2.20565606,139.72,139.7,0.6887714]
[1767936012157,2.20565606,139.72,139.69,0.66958067]
[1767936012748,2.85606171,139.72,139.69,0.66958067]
[1767936013069,2.20565606,139.71,139.69,0.66958067]
[1767936016366,2.85606171,139.72,139.69,0.66958067]
[1767936016554,2.20565606,139.72,139.69,0.66958067]
[1767936017173,2.89830713,139.73,139.69,7.82818459]
[1767936017368,2.89830713,139.73,139.7,0.66958067]
[1767936017562,2.20565606,139.73,139.7,0.66958067]
[1767936017764,2.20565606,139.73,139.69,7.15860392]
[1767936017969,2.20565606,139.73,139.69,7.82818459]
[1767936018176,2.57604223,139.73,139.7,0.66958067]
[1767936024978,0.68942842,139.72,139.69,7.15860392]
[1767936025181,2.57604223,139.73,139.7,0.66958067]
[1767936027177,2.57604223,139.73,139.69,7.15860392]
[1767936027481,0.28432314,139.68,139.53,11.62364081]
[1767936027683,2.20565606,139.58,139.52,0.2]
[1767936027883,0.69265107,139.59,139.52,0.2]
[1767936028061,2.20565606,139.58,139.55,0.2]
[1767936028578,2.20565606,139.57,139.55,0.2]
[1767936029086,2.20565606,139.58,139.55,0.2]
[1767936029274,2.20565606,139.58,139.56,0.66958067]
[1767936030976,0.69265107,139.62,139.57,0.66958067]
[1767936031179,2.20565606,139.6,139.57,0.66958067]
[1767936031565,2.20565606,139.6,139.58,0.66958067]
[1767936031774,0.69265107,139.62,139.58,0.66958067]
[1767936031775,2.20565606,139.61,139.58,0.66958067]
[1767936032177,0.28432314,139.66,139.58,0.66958067]
[1767936032178,2.89830713,139.65,139.6,0.66958067]
[1767936032564,2.20565606,139.65,139.61,0.71427586]
[1767936032976,2.20565606,139.65,139.62,0.71427586]
[1767936033165,0.66352687,139.66,139.62,0.71427586]
[1767936033166,2.20565606,139.66,139.62,0.71427586]
[1767936033866,2.20565606,139.67,139.62,0.71427586]
[1767936034484,2.20565606,139.67,139.63,0.71427586]
[1767936035068,2.20565606,139.67,139.64,0.71427586]
[1767936035977,2.20565606,139.68,139.64,0.71427586]
[1767936036178,2.20565606,139.68,139.65,0.71427586]
[1767936036872,7.15847437,139.7,139.65,0.71427586]
[1767936036873,2.20565606,139.7,139.65,0.71427586]
[1767936037776,2.20565606,139.69,139.65,0.71427586]
[1767936038184,2.20565606,139.7,139.66,0.71427586]
[1767936038383,2.86918293,139.71,139.66,0.71427586]
[1767936038692,2.20565606,139.71,139.66,0.71427586]
[1767936039479,2.20565606,139.7,139.67,7.15973365]
[1767936039677,2.20565606,139.7,139.68,0.71427586]
[1767936039975,2.20565606,139.71,139.68,0.71427586]
[1767936040386,0.66352687,139.72,139.68,0.71427586]
[1767936040586,2.20565606,139.7,139.68,0.71427586]
[1767936041676,0.66352687,139.72,139.68,0.71427586]
[1767936041876,2.20565606,139.7,139.68,0.71427586]
[1767936042288,2.20565606,139.69,139.66,7.87437154]
[1767936042499,2.86918293,139.69,139.66,7.87437154]
[1767936042891,2.20565606,139.69,139.66,7.87437154]
[1767936043198,2.20565606,139.69,139.59,0.71427586]
[1767936043199,2.42637285,139.67,139.59,0.71427586]
[1767936043374,2.20565606,139.64,139.59,0.71427586]
[1767936043580,2.20565606,139.64,139.6,0.71427586]
[1767936043813,2.20565606,139.64,139.62,0.71427586]
[1767936045990,2.20565606,139.65,139.62,7.87631162]
[1767936046991,2.20565606,139.65,139.63,7.87604166]
[1767936047192,2.20565606,139.66,139.63,7.87604166]
[1767936047697,2.20565606,139.67,139.64,0.71427586]
[1767936049109,2.20565606,139.66,139.64,0.71427586]
[1767936049996,2.20565606,139.67,139.64,0.71427586]
[1767936050392,2.20565606,139.67,139.64,7.87548226]
[1767936052001,2.86918293,139.68,139.64,7.87548226]
[1767936053603,2.20565606,139.67,139.64,0.71427586]
[1767936054408,2.20565606,139.67,139.64,7.87536547]
[1767936054917,0.56352687,139.64,139.55,0.1]
[1767936055113,2.20565606,139.58,139.45,3.73222918]
[1767936055416,25.07522567,139.58,139.45,2.20565606]
[1767936055612,2.20565606,139.55,139.48,2.20565606]
[1767936055787,2.20565606,139.55,139.48,15.28565606]
[1767936055989,2.20565606,139.54,139.48,13.08]
[1767936056392,2.20565606,139.54,139.49,0.28432314]
[1767936056599,5.64107408,139.55,139.49,7.16897268]
[1767936057016,5.64107408,139.55,139.5,0.71427586]
[1767936057212,5.64107408,139.54,139.5,0.71427586]
[1767936057914,7.82837132,139.56,139.5,0.71427586]
[1767936058120,5.64107408,139.54,139.5,0.71427586]
[1767936058623,5.64107408,139.54,139.5,7.88269276]
[1767936060319,5.64107408,139.56,139.52,0.71427586]
[1767936060618,35.79610538,139.68,139.52,0.71427586]
[1767936060619,0.66352687,139.6,139.54,0.71427586]
[1767936060822,5.64107408,139.59,139.54,0.71427586]
[1767936061432,5.64107408,139.58,139.54,0.71427586]
[1767936062027,5.64107408,139.58,139.54,7.88022673]
[1767936062411,0.66352687,139.6,139.56,0.71427586]
[1767936062412,5.64107408,139.59,139.56,0.71427586]
[1767936062611,5.64107408,139.61,139.57,0.69721808]
[1767936062812,5.64107408,139.61,139.57,0.98154122]
[1767936063808,5.64107408,139.61,139.57,8.14592353]
[1767936064312,0.66210096,139.62,139.57,8.14592353]
[1767936064313,6.30317504,139.62,139.57,8.14592353]
[1767936064643,5.64107408,139.62,139.58,0.69721808]
[1767936064814,5.64107408,139.63,139.58,0.69721808]
[1767936065010,0.66210096,139.63,139.58,0.69721808]
[1767936065207,5.64107408,139.63,139.58,0.69721808]
[1767936065421,0.66210096,139.65,139.58,0.69721808]
[1767936065611,0.66210096,139.65,139.51,0.69721808]
[1767936065612,0.66210096,139.58,139.51,0.69721808]
[1767936065821,5.64107408,139.55,139.51,0.69721808]
[1767936066130,5.64107408,139.55,139.52,7.86423433]
[1767936066530,9.16561345,139.55,139.53,13.08]
[1767936068634,9.16561345,139.54,139.53,13.08]
[1767936069127,9.16561345,139.55,139.53,13.08]
[1767936070530,9.16561345,139.56,139.53,20.2467484]
[1767936070717,9.16561345,139.57,139.54,0.69721808]
[1767936072029,9.16561345,139.57,139.54,7.86346897]
[1767936072628,9.16561345,139.58,139.55,0.69100113]
[1767936072818,9.16561345,139.58,139.56,13.08]
[1767936074124,9.16561345,139.58,139.56,13.77100113]
[1767936075429,9.16561345,139.58,139.56,13.08]
[1767936076335,9.16561345,139.57,139.56,13.08]
[1767936078635,3.45350022,139.57,139.56,13.08]
[1767936080415,3.45350022,139.59,139.57,0.69100113]
[1767936080737,3.45350022,139.6,139.57,0.69100113]
[1767936080935,7.84048549,139.63,139.57,0.69100113]